[Event "Late-Titled-Tuesday-Blitz-February-20-2024"]
[Site "Chess.com"]
[Date "2024.02.20"]
[Round "8"]
[White "TenisMaster"]
[Black "Duhless"]
[Result "1-0"]
[WhiteElo "3001"]
[BlackElo "3089"]
[TimeControl "180+1"]
[EndTime "15:29:31 PST"]
[Termination "TenisMaster won by resignation"]

1. e4 {[%clk 0:03:00.9]} 1... e5 {[%clk 0:02:59.3]} 2. Nf3 {[%clk 0:03:00.5]}
2... Nc6 {[%clk 0:02:59.5]} 3. Bb5 {[%clk 0:03:00.3]} 3... a6 {[%clk 0:02:59.3]}
4. Ba4 {[%clk 0:03:00.5]} 4... Nf6 {[%clk 0:02:58.6]} 5. O-O {[%clk 0:03:00.4]}
5... Be7 {[%clk 0:02:58.4]} 6. Re1 {[%clk 0:03:00.3]} 6... b5 {[%clk 0:02:58.3]}
7. Bb3 {[%clk 0:03:00.4]} 7... O-O {[%clk 0:02:58.1]} 8. h3 {[%clk 0:03:00.2]}
8... d6 {[%clk 0:02:48.3]} 9. c3 {[%clk 0:02:59.6]} 9... Na5 {[%clk 0:02:47.4]}
10. Bc2 {[%clk 0:02:59.3]} 10... c5 {[%clk 0:02:47.5]} 11. d4 {[%clk 0:02:58.6]}
11... Qc7 {[%clk 0:02:47.6]} 12. Nbd2 {[%clk 0:02:57.5]} 12... cxd4 {[%clk
0:02:41.2]} 13. cxd4 {[%clk 0:02:57.7]} 13... Nc6 {[%clk 0:02:41.8]} 14. Nb3
{[%clk 0:02:57.4]} 14... a5 {[%clk 0:02:39.9]} 15. Be3 {[%clk 0:02:56.4]} 15...
a4 {[%clk 0:02:39.2]} 16. Nbd2 {[%clk 0:02:56.7]} 16... Nb4 {[%clk 0:02:33.3]}
17. Bb1 {[%clk 0:02:56.2]} 17... a3 {[%clk 0:02:29.7]} 18. Qb3 {[%clk
0:02:38.1]} 18... axb2 {[%clk 0:02:29.3]} 19. Qxb2 {[%clk 0:02:38.9]} 19... Nc6
{[%clk 0:02:18.2]} 20. Bd3 {[%clk 0:02:37.6]} 20... Bd7 {[%clk 0:01:59.8]} 21.
Nf1 {[%clk 0:02:24.9]} 21... exd4 {[%clk 0:01:44.8]} 22. Bxd4 {[%clk 0:02:19.8]}
22... Nxd4 {[%clk 0:01:40.3]} 23. Nxd4 {[%clk 0:02:20.7]} 23... d5 {[%clk
0:01:28]} 24. e5 {[%clk 0:02:11.3]} 24... Ne4 {[%clk 0:01:27]} 25. Bxe4 {[%clk
0:02:07.9]} 25... dxe4 {[%clk 0:01:27.9]} 26. Rxe4 {[%clk 0:02:07.5]} 26... Ra4
{[%clk 0:01:07.8]} 27. Ng3 {[%clk 0:02:00.4]} 27... Rfa8 {[%clk 0:00:46.6]} 28.
Ndf5 {[%clk 0:01:41.9]} 28... Bf8 {[%clk 0:00:41.2]} 29. Rxa4 {[%clk 0:01:35.3]}
29... Rxa4 {[%clk 0:00:39.7]} 30. Rd1 {[%clk 0:01:30.8]} 30... Be6 {[%clk
0:00:36.9]} 31. Qxb5 {[%clk 0:01:29.3]} 31... Ra8 {[%clk 0:00:20.3]} 32. Nd6
{[%clk 0:01:24.5]} 32... Rxa2 {[%clk 0:00:18.9]} 33. Qd3 {[%clk 0:01:21.9]}
33... Qa7 {[%clk 0:00:17]} 34. Qf3 {[%clk 0:01:14.7]} 34... h6 {[%clk
0:00:14.9]} 35. Nge4 {[%clk 0:01:13]} 35... Ra1 {[%clk 0:00:15.2]} 36. Kh2
{[%clk 0:00:52.9]} 36... Rxd1 {[%clk 0:00:14.6]} 37. Qxd1 {[%clk 0:00:53.8]}
37... Qb6 {[%clk 0:00:13.9]} 38. Qd2 {[%clk 0:00:50.9]} 38... Be7 {[%clk
0:00:12.4]} 39. Qf4 {[%clk 0:00:50.1]} 39... Qb2 {[%clk 0:00:09.7]} 40. Nf5
{[%clk 0:00:46.6]} 40... Bf8 {[%clk 0:00:09.2]} 41. Nxh6+ {[%clk 0:00:34]} 41...
Kh8 {[%clk 0:00:03.3]} 42. Nxf7+ {[%clk 0:00:29.3]} 42... Bxf7 {[%clk
0:00:03.2]} 43. Qxf7 {[%clk 0:00:29.9]} 43... Qxe5+ {[%clk 0:00:03.7]} 44. Ng3
{[%clk 0:00:30.2]} 44... Bd6 {[%clk 0:00:03.8]} 45. Qf3 {[%clk 0:00:29.4]} 45...
Qg5 {[%clk 0:00:03.1]} 46. Qg4 {[%clk 0:00:28.1]} 46... Qe5 {[%clk 0:00:02.5]}
47. Qh4+ {[%clk 0:00:27.4]} 47... Kg8 {[%clk 0:00:02.6]} 48. Qc4+ {[%clk
0:00:25.7]} 48... Kh8 {[%clk 0:00:02.2]} 49. Qd3 {[%clk 0:00:24.3]} 49... Qf6
{[%clk 0:00:02.2]} 50. Kg1 {[%clk 0:00:21.6]} 50... Bc5 {[%clk 0:00:01.1]} 51.
Qe2 {[%clk 0:00:20.9]} 51... Qa1+ {[%clk 0:00:01.1]} 52. Nf1 {[%clk 0:00:21]}
52... Qf6 {[%clk 0:00:01.6]} 53. g3 {[%clk 0:00:21.2]} 53... Bd4 {[%clk
0:00:01.9]} 54. Kg2 {[%clk 0:00:20.6]} 54... Kh7 {[%clk 0:00:02.5]} 55. Qe4+
{[%clk 0:00:19.7]} 55... Kh8 {[%clk 0:00:03.1]} 56. Qf3 {[%clk 0:00:20]} 56...
Qe7 {[%clk 0:00:02.7]} 57. Nd2 {[%clk 0:00:19.4]} 57... Be5 {[%clk 0:00:02.5]}
58. Ne4 {[%clk 0:00:19.5]} 58... g6 {[%clk 0:00:03]} 59. h4 {[%clk 0:00:19.8]}
59... Kg7 {[%clk 0:00:03.4]} 60. Ng5 {[%clk 0:00:17.6]} 60... Bf6 {[%clk
0:00:03.6]} 61. Qe3 {[%clk 0:00:13.8]} 61... Qb7+ {[%clk 0:00:03.4]} 62. Qe4
{[%clk 0:00:13.1]} 62... Qd7 {[%clk 0:00:03.7]} 63. Ne6+ {[%clk 0:00:13]} 63...
Kh6 {[%clk 0:00:04.1]} 64. Qxg6+ {[%clk 0:00:10]} 64... Kxg6 {[%clk 0:00:03.8]}
65. Nf8+ {[%clk 0:00:10.7]} 65... Kf5 {[%clk 0:00:03.7]} 66. Nxd7 {[%clk
0:00:11.6]} 66... Bd4 {[%clk 0:00:04.3]} 67. Kf3 {[%clk 0:00:10.2]} 67... Ke6
{[%clk 0:00:04.5]} 68. Nb8 {[%clk 0:00:10.5]} 68... Kd6 {[%clk 0:00:04.1]} 69.
g4 {[%clk 0:00:08.8]} 69... Bc3 {[%clk 0:00:03.5]} 70. Ke4 {[%clk 0:00:06.8]}
70... Kc7 {[%clk 0:00:03.8]} 71. Kd5 {[%clk 0:00:05]} 71... Kxb8 {[%clk
0:00:03.8]} 72. Ke6 {[%clk 0:00:05.5]} 72... Kc7 {[%clk 0:00:04.1]} 73. g5
{[%clk 0:00:05.1]} 73... Kd8 {[%clk 0:00:03.9]} 74. Kf7 {[%clk 0:00:05.3]} 1-0

[Event "Late-Titled-Tuesday-Blitz-February-20-2024"]
[Site "Chess.com"]
[Date "2024.02.20"]
[Round "8"]
[White "Slovineanu"]
[Black "ACollins05"]
[Result "1/2-1/2"]
[WhiteElo "2454"]
[BlackElo "2583"]
[TimeControl "180+1"]
[EndTime "15:29:32 PST"]
[Termination "Game drawn - insufficient material"]

1. d4 {[%clk 0:02:56]} 1... d5 {[%clk 0:02:54.8]} 2. Nf3 {[%clk 0:02:55.8]} 2...
Nf6 {[%clk 0:02:54.1]} 3. c4 {[%clk 0:02:56.3]} 3... e6 {[%clk 0:02:54.2]} 4. e3
{[%clk 0:02:56.7]} 4... Be7 {[%clk 0:02:53.9]} 5. b3 {[%clk 0:02:56.8]} 5... O-O
{[%clk 0:02:53.8]} 6. Bd3 {[%clk 0:02:57.1]} 6... b6 {[%clk 0:02:54.2]} 7. O-O
{[%clk 0:02:56.6]} 7... Bb7 {[%clk 0:02:54.7]} 8. Bb2 {[%clk 0:02:57]} 8... c5
{[%clk 0:02:54.3]} 9. Qe2 {[%clk 0:02:56.8]} 9... Nc6 {[%clk 0:02:54]} 10. Nbd2
{[%clk 0:02:56.8]} 10... Rc8 {[%clk 0:02:52.9]} 11. Rac1 {[%clk 0:02:54.9]}
11... cxd4 {[%clk 0:02:49.8]} 12. Nxd4 {[%clk 0:02:51.9]} 12... Nxd4 {[%clk
0:02:49.8]} 13. Bxd4 {[%clk 0:02:51.3]} 13... dxc4 {[%clk 0:02:49.6]} 14. Nxc4
{[%clk 0:02:46.1]} 14... Bc5 {[%clk 0:02:47.3]} 15. Bb2 {[%clk 0:02:38.5]} 15...
Qe7 {[%clk 0:02:46.7]} 16. Ne5 {[%clk 0:02:30.6]} 16... Rfd8 {[%clk 0:02:41.3]}
17. Rfd1 {[%clk 0:02:25.6]} 17... Ba3 {[%clk 0:02:35]} 18. Bb5 {[%clk
0:02:15.9]} 18... Bxb2 {[%clk 0:02:31]} 19. Qxb2 {[%clk 0:02:15.5]} 19... Nd5
{[%clk 0:02:28.3]} 20. Nc6 {[%clk 0:02:04.8]} 20... Bxc6 {[%clk 0:02:23.6]} 21.
Bxc6 {[%clk 0:02:05.2]} 21... Nb4 {[%clk 0:02:08.5]} 22. Be4 {[%clk 0:02:00.8]}
22... Rxd1+ {[%clk 0:01:52.3]} 23. Rxd1 {[%clk 0:01:58.6]} 23... Rd8 {[%clk
0:01:52.3]} 24. Rxd8+ {[%clk 0:01:49.8]} 24... Qxd8 {[%clk 0:01:53.2]} 25. g3
{[%clk 0:01:46.3]} 25... g6 {[%clk 0:01:47.1]} 26. a3 {[%clk 0:01:41.9]} 26...
Na6 {[%clk 0:01:43.2]} 27. b4 {[%clk 0:01:40.7]} 27... Nc7 {[%clk 0:01:42.2]}
28. Qe5 {[%clk 0:01:33.9]} 28... f6 {[%clk 0:01:35.8]} 29. Qc3 {[%clk
0:01:26.3]} 29... Kf7 {[%clk 0:01:29.3]} 30. h4 {[%clk 0:01:24.8]} 30... Qd7
{[%clk 0:01:21.2]} 31. h5 {[%clk 0:01:21.1]} 31... f5 {[%clk 0:01:14.9]} 32. Bc6
{[%clk 0:01:13.2]} 32... Qd1+ {[%clk 0:01:13.8]} 33. Kg2 {[%clk 0:01:13.2]}
33... Qd6 {[%clk 0:01:00.6]} 34. Bf3 {[%clk 0:00:51]} 34... e5 {[%clk
0:00:59.9]} 35. Qc4+ {[%clk 0:00:42.4]} 35... Kg7 {[%clk 0:00:53.9]} 36. Bc6
{[%clk 0:00:30.5]} 36... Ne6 {[%clk 0:00:41.8]} 37. Bd5 {[%clk 0:00:16.8]} 37...
Nc7 {[%clk 0:00:41.3]} 38. Bc6 {[%clk 0:00:16.1]} 38... a6 {[%clk 0:00:34.3]}
39. Qc3 {[%clk 0:00:15]} 39... Kf6 {[%clk 0:00:22.7]} 40. f4 {[%clk 0:00:14.2]}
40... Ne6 {[%clk 0:00:19.6]} 41. Bb7 {[%clk 0:00:13.4]} 41... a5 {[%clk
0:00:18.6]} 42. bxa5 {[%clk 0:00:12.2]} 42... bxa5 {[%clk 0:00:17.9]} 43. Kf3
{[%clk 0:00:12.3]} 43... Qc5 {[%clk 0:00:15.7]} 44. fxe5+ {[%clk 0:00:11]} 44...
Qxe5 {[%clk 0:00:15.3]} 45. Qxe5+ {[%clk 0:00:09.4]} 45... Kxe5 {[%clk
0:00:16.2]} 46. hxg6 {[%clk 0:00:09.9]} 46... hxg6 {[%clk 0:00:16.8]} 47. g4
{[%clk 0:00:10.3]} 47... Ng5+ {[%clk 0:00:16.3]} 48. Kg3 {[%clk 0:00:10]} 48...
Ne4+ {[%clk 0:00:16.4]} 49. Kh4 {[%clk 0:00:09.3]} 49... g5+ {[%clk 0:00:15.1]}
50. Kh5 {[%clk 0:00:09]} 50... f4 {[%clk 0:00:15]} 51. exf4+ {[%clk 0:00:08.3]}
51... gxf4 {[%clk 0:00:15.9]} 52. g5 {[%clk 0:00:05.8]} 52... f3 {[%clk
0:00:16]} 53. g6 {[%clk 0:00:05.9]} 53... f2 {[%clk 0:00:12.5]} 54. Ba6 {[%clk
0:00:06.1]} 54... Kf6 {[%clk 0:00:11.9]} 55. Kh6 {[%clk 0:00:05.7]} 55... Nc5
{[%clk 0:00:11.5]} 56. Bf1 {[%clk 0:00:04.3]} 56... Ne6 {[%clk 0:00:11.4]} 57.
Bc4 {[%clk 0:00:04.1]} 57... Ng7 {[%clk 0:00:10.5]} 58. Bf1 {[%clk 0:00:04.1]}
58... Nf5+ {[%clk 0:00:10]} 59. Kh7 {[%clk 0:00:04.7]} 59... Ng7 {[%clk
0:00:08.8]} 60. Bd3 {[%clk 0:00:04.3]} 60... Ne6 {[%clk 0:00:09]} 61. Bc4 {[%clk
0:00:04.4]} 61... Ng5+ {[%clk 0:00:09]} 62. Kh6 {[%clk 0:00:04.2]} 62... Ne6
{[%clk 0:00:07.5]} 63. Bf1 {[%clk 0:00:03.6]} 63... a4 {[%clk 0:00:04.8]} 64.
Bc4 {[%clk 0:00:02.7]} 64... Ng7 {[%clk 0:00:04.1]} 65. Bf1 {[%clk 0:00:03.2]}
65... Ne6 {[%clk 0:00:04.2]} 66. Kh7 {[%clk 0:00:03.3]} 66... Nf8+ {[%clk
0:00:04.4]} 67. Kh6 {[%clk 0:00:02.5]} 67... Nxg6 {[%clk 0:00:05.3]} 68. Kh5
{[%clk 0:00:02.8]} 68... Ne5 {[%clk 0:00:03.1]} 69. Kh4 {[%clk 0:00:02.9]} 69...
Nf3+ {[%clk 0:00:02.4]} 70. Kg3 {[%clk 0:00:03]} 70... Nd2 {[%clk 0:00:03.1]}
71. Kxf2 {[%clk 0:00:03]} 71... Nb1 {[%clk 0:00:01.8]} 72. Bb5 {[%clk
0:00:02.8]} 72... Nxa3 {[%clk 0:00:02.7]} 73. Bxa4 {[%clk 0:00:02.8]} 1/2-1/2

[Event "Late-Titled-Tuesday-Blitz-February-20-2024"]
[Site "Chess.com"]
[Date "2024.02.20"]
[Round "8"]
[White "ritanovikova"]
[Black "WPWPWP-2015"]
[Result "0-1"]
[WhiteElo "2225"]
[BlackElo "2430"]
[TimeControl "180+1"]
[EndTime "15:29:35 PST"]
[Termination "WPWPWP-2015 won by checkmate"]

1. e4 {[%clk 0:02:59]} 1... e5 {[%clk 0:02:59.1]} 2. Nf3 {[%clk 0:02:58.7]} 2...
Nc6 {[%clk 0:02:58.8]} 3. Bc4 {[%clk 0:02:58.4]} 3... Nf6 {[%clk 0:02:57.8]} 4.
d3 {[%clk 0:02:56.4]} 4... Bc5 {[%clk 0:02:56.6]} 5. Nc3 {[%clk 0:02:54.8]} 5...
h6 {[%clk 0:02:56.4]} 6. a3 {[%clk 0:02:54.7]} 6... a6 {[%clk 0:02:55.6]} 7. h3
{[%clk 0:02:54.3]} 7... O-O {[%clk 0:02:55.1]} 8. O-O {[%clk 0:02:53.7]} 8... b5
{[%clk 0:02:52.6]} 9. Ba2 {[%clk 0:02:50.2]} 9... Bb7 {[%clk 0:02:52.5]} 10. Nd5
{[%clk 0:02:47.2]} 10... Re8 {[%clk 0:02:45.6]} 11. b4 {[%clk 0:02:34.3]} 11...
Bf8 {[%clk 0:02:43.1]} 12. Re1 {[%clk 0:02:24.3]} 12... d6 {[%clk 0:02:41.1]}
13. c3 {[%clk 0:02:22]} 13... Nb8 {[%clk 0:02:37.5]} 14. Ne3 {[%clk 0:02:17.2]}
14... c6 {[%clk 0:02:34.2]} 15. Nf5 {[%clk 0:02:14.3]} 15... Nbd7 {[%clk
0:02:29.9]} 16. Qc2 {[%clk 0:02:07.1]} 16... a5 {[%clk 0:02:28.2]} 17. Bb2
{[%clk 0:02:05.5]} 17... d5 {[%clk 0:02:15.4]} 18. Ng3 {[%clk 0:01:25.6]} 18...
g6 {[%clk 0:01:48.9]} 19. d4 {[%clk 0:01:06.6]} 19... Qc7 {[%clk 0:01:43.5]} 20.
exd5 {[%clk 0:01:03.9]} 20... cxd5 {[%clk 0:01:42]} 21. dxe5 {[%clk 0:00:46.4]}
21... Nxe5 {[%clk 0:01:40.4]} 22. Nd4 {[%clk 0:00:44.1]} 22... Nc4 {[%clk
0:01:28.4]} 23. Nxb5 {[%clk 0:00:29.2]} 23... Qb6 {[%clk 0:01:28]} 24. Nd4
{[%clk 0:00:28.9]} 24... axb4 {[%clk 0:01:27.5]} 25. axb4 {[%clk 0:00:27.8]}
25... Rxe1+ {[%clk 0:01:26.4]} 26. Rxe1 {[%clk 0:00:25.3]} 26... Rxa2 {[%clk
0:01:25.4]} 27. Rb1 {[%clk 0:00:23.8]} 27... Ne4 {[%clk 0:01:14.6]} 28. Nxe4
{[%clk 0:00:23.3]} 28... dxe4 {[%clk 0:01:14]} 29. Qc1 {[%clk 0:00:20.9]} 29...
Nxb2 {[%clk 0:01:08.8]} 30. Rxb2 {[%clk 0:00:21]} 30... Rxb2 {[%clk 0:01:06.3]}
31. Qxb2 {[%clk 0:00:21.3]} 31... Bg7 {[%clk 0:01:06]} 32. Qd2 {[%clk
0:00:13.2]} 32... Qd6 {[%clk 0:01:03.6]} 33. Qe3 {[%clk 0:00:12.4]} 33... Be5
{[%clk 0:00:59.7]} 34. g3 {[%clk 0:00:11.6]} 34... Kg7 {[%clk 0:00:58.7]} 35. h4
{[%clk 0:00:11.3]} 35... h5 {[%clk 0:00:58.4]} 36. Ne2 {[%clk 0:00:10.1]} 36...
Qd1+ {[%clk 0:00:54.8]} 37. Kg2 {[%clk 0:00:10.4]} 37... Qd3 {[%clk 0:00:55.7]}
38. Nd4 {[%clk 0:00:02.8]} 38... Bd5 {[%clk 0:00:42.6]} 39. b5 {[%clk
0:00:02.8]} 39... Qxe3 {[%clk 0:00:40]} 40. fxe3 {[%clk 0:00:03]} 40... Bc7
{[%clk 0:00:37.7]} 41. Nc6 {[%clk 0:00:02.7]} 41... Bc4 {[%clk 0:00:32.5]} 42.
Nd4 {[%clk 0:00:02.6]} 42... Bb6 {[%clk 0:00:31.9]} 43. Kf2 {[%clk 0:00:02.3]}
43... Kf6 {[%clk 0:00:29.3]} 44. Ke1 {[%clk 0:00:01.8]} 44... Ke5 {[%clk
0:00:28.5]} 45. Kd2 {[%clk 0:00:02.3]} 45... Kd6 {[%clk 0:00:27.8]} 46. Kc2
{[%clk 0:00:02.5]} 46... Kc5 {[%clk 0:00:27.5]} 47. Kd2 {[%clk 0:00:02.4]} 47...
Bc7 {[%clk 0:00:27]} 48. Ne2 {[%clk 0:00:01.7]} 48... Bxb5 {[%clk 0:00:25.9]}
49. Nf4 {[%clk 0:00:02.1]} 49... Bc4 {[%clk 0:00:25.4]} 50. Ke1 {[%clk
0:00:02.3]} 50... Be5 {[%clk 0:00:25]} 51. Kf2 {[%clk 0:00:03.2]} 51... Bxc3
{[%clk 0:00:24.7]} 52. Ne2 {[%clk 0:00:03.5]} 52... Be5 {[%clk 0:00:23.3]} 53.
Nf4 {[%clk 0:00:03.8]} 53... Bc3 {[%clk 0:00:22.1]} 54. Ng2 {[%clk 0:00:04.1]}
54... Kd6 {[%clk 0:00:20.2]} 55. Nf4 {[%clk 0:00:04.5]} 55... Ke7 {[%clk
0:00:19.9]} 56. g4 {[%clk 0:00:05.2]} 56... hxg4 {[%clk 0:00:19.3]} 57. Kg3
{[%clk 0:00:06.1]} 57... Be6 {[%clk 0:00:15.7]} 58. h5 {[%clk 0:00:06.3]} 58...
gxh5 {[%clk 0:00:15.2]} 59. Nxh5 {[%clk 0:00:07.2]} 59... Be5+ {[%clk
0:00:13.8]} 60. Kh4 {[%clk 0:00:07.3]} 60... Bf5 {[%clk 0:00:08.3]} 61. Kg5
{[%clk 0:00:06.6]} 61... Ke6 {[%clk 0:00:08.8]} 62. Ng7+ {[%clk 0:00:06.6]}
62... Bxg7 {[%clk 0:00:08]} 63. Kf4 {[%clk 0:00:06.9]} 63... Be5+ {[%clk
0:00:07.6]} 64. Kg5 {[%clk 0:00:07.2]} 64... f6+ {[%clk 0:00:07.2]} 65. Kh6
{[%clk 0:00:07.5]} 65... g3 {[%clk 0:00:06.9]} 66. Kg7 {[%clk 0:00:07.5]} 66...
g2 {[%clk 0:00:07]} 67. Kf8 {[%clk 0:00:08.4]} 67... g1=Q {[%clk 0:00:05.6]} 68.
Ke8 {[%clk 0:00:06.9]} 68... Qg8# {[%clk 0:00:04.9]} 0-1

[Event "Late-Titled-Tuesday-Blitz-February-20-2024"]
[Site "Chess.com"]
[Date "2024.02.20"]
[Round "8"]
[White "Sanan_Sjugirov"]
[Black "vi_pranav"]
[Result "1/2-1/2"]
[WhiteElo "2887"]
[BlackElo "3012"]
[TimeControl "180+1"]
[EndTime "15:30:28 PST"]
[Termination "Game drawn by repetition"]

1. e4 {[%clk 0:02:59.6]} 1... e5 {[%clk 0:02:59.2]} 2. Nf3 {[%clk 0:03:00]} 2...
Nc6 {[%clk 0:02:59.9]} 3. Bb5 {[%clk 0:03:00.2]} 3... a6 {[%clk 0:03:00.1]} 4.
Ba4 {[%clk 0:03:00.9]} 4... Nf6 {[%clk 0:02:59.7]} 5. O-O {[%clk 0:03:01.5]}
5... b5 {[%clk 0:03:00.3]} 6. Bb3 {[%clk 0:03:01.4]} 6... Bc5 {[%clk 0:03:01.2]}
7. c3 {[%clk 0:02:58.5]} 7... d6 {[%clk 0:03:01.5]} 8. a4 {[%clk 0:02:58]} 8...
Bg4 {[%clk 0:02:57.2]} 9. d3 {[%clk 0:02:54.7]} 9... h6 {[%clk 0:02:55.4]} 10.
Nbd2 {[%clk 0:02:53]} 10... O-O {[%clk 0:02:53.2]} 11. h3 {[%clk 0:02:51.6]}
11... Bd7 {[%clk 0:02:45.2]} 12. Re1 {[%clk 0:02:50.9]} 12... Re8 {[%clk
0:02:44.7]} 13. Nf1 {[%clk 0:02:50.9]} 13... Rb8 {[%clk 0:02:35.9]} 14. Ng3
{[%clk 0:02:50.4]} 14... Bb6 {[%clk 0:02:30.3]} 15. axb5 {[%clk 0:02:49.8]}
15... axb5 {[%clk 0:02:30.3]} 16. d4 {[%clk 0:02:50.1]} 16... Ra8 {[%clk
0:01:52.6]} 17. Rxa8 {[%clk 0:02:46.3]} 17... Qxa8 {[%clk 0:01:53.5]} 18. dxe5
{[%clk 0:02:21.7]} 18... Nxe5 {[%clk 0:01:39.9]} 19. Nxe5 {[%clk 0:02:18.2]}
19... Rxe5 {[%clk 0:01:37]} 20. Bf4 {[%clk 0:02:16.5]} 20... Re8 {[%clk
0:01:35.6]} 21. e5 {[%clk 0:02:13.8]} 21... dxe5 {[%clk 0:01:09.7]} 22. Bxe5
{[%clk 0:02:14.7]} 22... Be6 {[%clk 0:01:00.2]} 23. Bc2 {[%clk 0:01:40.9]} 23...
Rd8 {[%clk 0:00:59.6]} 24. Qc1 {[%clk 0:01:32.6]} 24... Nd7 {[%clk 0:00:14.1]}
25. Bxg7 {[%clk 0:01:30.5]} 25... Kxg7 {[%clk 0:00:14.5]} 26. Nh5+ {[%clk
0:01:30.9]} 26... Kf8 {[%clk 0:00:15.3]} 27. Qxh6+ {[%clk 0:01:30.6]} 27... Ke7
{[%clk 0:00:16]} 28. Qg5+ {[%clk 0:01:29.7]} 28... Kd6 {[%clk 0:00:16.2]} 29.
Rd1+ {[%clk 0:01:21]} 29... Bd5 {[%clk 0:00:16.3]} 30. Qf4+ {[%clk 0:01:03.7]}
30... Ke7 {[%clk 0:00:12.2]} 31. Qg5+ {[%clk 0:01:02.7]} 31... Kd6 {[%clk
0:00:12.3]} 32. Nf4 {[%clk 0:00:35.5]} 32... c6 {[%clk 0:00:10.5]} 33. Be4
{[%clk 0:00:36.2]} 33... Rg8 {[%clk 0:00:08.1]} 34. Qh6+ {[%clk 0:00:36]} 34...
Kc7 {[%clk 0:00:08.4]} 35. Bxd5 {[%clk 0:00:32.1]} 35... cxd5 {[%clk 0:00:03]}
36. Nxd5+ {[%clk 0:00:33]} 36... Kb7 {[%clk 0:00:03.1]} 37. Qd6 {[%clk 0:00:27]}
37... Qe8 {[%clk 0:00:01.7]} 38. Nb4 {[%clk 0:00:20.1]} 38... Nb8 {[%clk
0:00:01.5]} 39. Qd5+ {[%clk 0:00:20.3]} 39... Kc7 {[%clk 0:00:02]} 40. Qf3
{[%clk 0:00:17.9]} 40... Kc8 {[%clk 0:00:01.5]} 41. Nd5 {[%clk 0:00:17.9]} 41...
Bd8 {[%clk 0:00:02.2]} 42. c4 {[%clk 0:00:14.5]} 42... b4 {[%clk 0:00:02.3]} 43.
c5 {[%clk 0:00:14.7]} 43... Qc6 {[%clk 0:00:02.3]} 44. Qxf7 {[%clk 0:00:13.9]}
44... Rg5 {[%clk 0:00:02.6]} 45. Qf3 {[%clk 0:00:10.9]} 45... Kb7 {[%clk
0:00:02.2]} 46. Qf7+ {[%clk 0:00:10.4]} 46... Nd7 {[%clk 0:00:02.7]} 47. Ne3
{[%clk 0:00:09.9]} 47... Kc8 {[%clk 0:00:03]} 48. Qf4 {[%clk 0:00:08.6]} 48...
Rxc5 {[%clk 0:00:03]} 49. Qxb4 {[%clk 0:00:08.9]} 49... Bc7 {[%clk 0:00:02.5]}
50. Qg4 {[%clk 0:00:07.5]} 50... Rc1 {[%clk 0:00:02.8]} 51. h4 {[%clk
0:00:06.9]} 51... Rxd1+ {[%clk 0:00:03.1]} 52. Qxd1 {[%clk 0:00:07.8]} 52... Ne5
{[%clk 0:00:03.1]} 53. h5 {[%clk 0:00:08.1]} 53... Qh6 {[%clk 0:00:03.3]} 54.
Nd5 {[%clk 0:00:06.9]} 54... Bd8 {[%clk 0:00:02.9]} 55. Qc2+ {[%clk 0:00:06.7]}
55... Nc6 {[%clk 0:00:03.4]} 56. Nb4 {[%clk 0:00:06]} 56... Kb7 {[%clk
0:00:03.4]} 57. Qxc6+ {[%clk 0:00:05.9]} 57... Qxc6 {[%clk 0:00:04.3]} 58. Nxc6
{[%clk 0:00:06.8]} 58... Kxc6 {[%clk 0:00:05.2]} 59. g4 {[%clk 0:00:06]} 59...
Bf6 {[%clk 0:00:05.3]} 60. Kg2 {[%clk 0:00:06.4]} 60... Bxb2 {[%clk 0:00:05.3]}
61. g5 {[%clk 0:00:06.3]} 61... Kd6 {[%clk 0:00:05.6]} 62. Kg3 {[%clk
0:00:06.9]} 62... Ke6 {[%clk 0:00:05.1]} 63. Kg4 {[%clk 0:00:07.6]} 63... Bc1
{[%clk 0:00:03.5]} 64. f4 {[%clk 0:00:07.8]} 64... Bb2 {[%clk 0:00:02.9]} 65.
f5+ {[%clk 0:00:07.3]} 65... Kf7 {[%clk 0:00:03.4]} 66. h6 {[%clk 0:00:06.7]}
66... Ba1 {[%clk 0:00:03]} 67. Kh5 {[%clk 0:00:03.5]} 67... Bb2 {[%clk
0:00:02.6]} 68. g6+ {[%clk 0:00:01.9]} 68... Kf6 {[%clk 0:00:02.9]} 69. h7
{[%clk 0:00:02.4]} 69... Kg7 {[%clk 0:00:03.3]} 70. Kg5 {[%clk 0:00:02.8]} 70...
Kh8 {[%clk 0:00:03.2]} 71. Kf4 {[%clk 0:00:02.4]} 71... Kg7 {[%clk 0:00:03.7]}
72. Ke4 {[%clk 0:00:03.3]} 72... Kh8 {[%clk 0:00:04.4]} 73. Kd5 {[%clk
0:00:03.8]} 73... Kg7 {[%clk 0:00:05.1]} 74. Ke6 {[%clk 0:00:04.5]} 74... Kh8
{[%clk 0:00:05.9]} 75. Kf7 {[%clk 0:00:04.8]} 75... Ba1 {[%clk 0:00:05.8]} 76.
Ke7 {[%clk 0:00:04.6]} 76... Bg7 {[%clk 0:00:06.3]} 77. Ke6 {[%clk 0:00:04.5]}
77... Ba1 {[%clk 0:00:06.3]} 78. Kd6 {[%clk 0:00:02.9]} 78... Bg7 {[%clk
0:00:06.8]} 79. Kd7 {[%clk 0:00:03.4]} 79... Ba1 {[%clk 0:00:07.1]} 80. Ke8
{[%clk 0:00:04.3]} 80... Bg7 {[%clk 0:00:07.7]} 81. Kf7 {[%clk 0:00:04.4]} 81...
Ba1 {[%clk 0:00:08.3]} 82. Ke6 {[%clk 0:00:02.5]} 82... Bg7 {[%clk 0:00:08.9]}
83. Kd5 {[%clk 0:00:03]} 83... Ba1 {[%clk 0:00:09.6]} 84. Ke4 {[%clk 0:00:03.6]}
84... Bg7 {[%clk 0:00:10.3]} 85. Kf4 {[%clk 0:00:04.3]} 85... Ba1 {[%clk
0:00:11]} 86. Kg5 {[%clk 0:00:05.2]} 86... Bg7 {[%clk 0:00:11.6]} 87. Kh5 {[%clk
0:00:05.3]} 87... Ba1 {[%clk 0:00:12.5]} 88. Kg4 {[%clk 0:00:05]} 88... Bf6
{[%clk 0:00:12.8]} 89. Kf4 {[%clk 0:00:05.4]} 89... Bg7 {[%clk 0:00:13.2]} 90.
Ke4 {[%clk 0:00:06.3]} 90... Bf6 {[%clk 0:00:13.5]} 91. Kd5 {[%clk 0:00:07.2]}
91... Bg7 {[%clk 0:00:14.2]} 92. Ke6 {[%clk 0:00:08.1]} 92... Ba1 {[%clk
0:00:14]} 93. Kf7 {[%clk 0:00:08.2]} 93... Bg7 {[%clk 0:00:14.4]} 94. Ke6 {[%clk
0:00:05.7]} 1/2-1/2